Cogmind - Beta 17 @@@ ROGUE MODE // 2026.06.22 @ 22:44:52 Player: jumpy Result: Destroyed by G-34 Mercenary with Small Laser Performance ------------- Evolutions (0) 0 Regions Visited (2) 400 Robots Destroyed (33) 165 Value Destroyed (513) 513 Prototype IDs (1) 20 Alien Tech Used (0) 0 Bonus (6100) 6100 TOTAL SCORE: 7198 Bonus ------- Prayed to X0-1V1 5000 Major X0-1V1 Interference 1100 Cogmind --------- Core Integrity 0/250 Matter 274/300 Energy 880/900 System Corruption 0% Temperature Cool (12) Movement Core (400) Ox7 Location -10/Mines Parts ------- > --- POWER (1) -------- (None) > --- PROPULSION (1) --- (None) > --- UTILITY (2) ------ Large Storage Unit X0-1V1's Piety Tracker > --- WEAPON (3) ------- Shotgun > --- INVENTORY (15) --- Light Ion Engine Aluminum Leg Aluminum Leg Aluminum Leg Aluminum Leg Wheel Improved Terrain Scanner Shotgun Shotgun Shotgun Shotgun Mini Grenade Launcher Mining Laser Peak State ------------ > --- POWER ------------ Ion Engine > --- PROPULSION ------- Aluminum Leg Aluminum Leg > --- UTILITY ---------- Large Storage Unit X0-1V1's Piety Tracker > --- WEAPON ----------- Shotgun Shotgun > --- INVENTORY -------- Light Ion Engine Aluminum Leg Aluminum Leg Aluminum Leg Aluminum Leg Wheel Improved Terrain Scanner Shotgun Shotgun Shotgun Shotgun Shotgun Mini Grenade Launcher Mining Laser [Rating: 23] Favorites ----------- Power Ion Engine Engine Ion Engine Propulsion Aluminum Leg Leg Aluminum Leg Utility Large Storage Unit Device Seismic Detector Storage Large Storage Unit Weapon Shotgun Energy Gun EM Pulse Gun Ballistic Gun Shotgun Build | -11 -10 -10 ------- Run | Yrd Mat Min Slots Evolved . | . . . Power . | . . . Propulsion . | . . . Utility . | . . . Weapon . | . . . Parts Attached 19 | 9 9 1 Power 3 | 1 2 . Engine 3 | 1 2 . Core . | . . . Reactor . | . . . Propulsion 4 | 2 2 . Treads . | . . . Leg 4 | 2 2 . Wheel . | . . . Hover . | . . . Flight . | . . . Utility 5 | 3 2 . Device 3 | 2 1 . Storage 2 | 1 1 . Processor . | . . . Hackware . | . . . Protection . | . . . Artifact . | . . . Weapon 7 | 3 3 1 Energy Gun 2 | 2 . . Energy Cannon . | . . . Ballistic Gun 5 | 1 3 1 Ballistic Cannon . | . . . Launcher . | . . . Special Weapon . | . . . Impact Weapon . | . . . Slashing Weapon . | . . . Piercing Weapon . | . . . Special Melee Weapon . | . . . Unidentified Prototypes 1 | . 1 . Parts Lost 5 | . 1 4 Power 2 | . 1 1 Propulsion 1 | . . 1 Utility . | . . . Weapon 2 | . . 2 Highest Loss Streak 4 | . 1 4 To Critical Strikes . | . . . Average Backups 11 | 3 12 14 Power . | . . 1 Propulsion 4 | 1 5 5 Utility . | . 1 1 Weapon 4 | . 5 7 Tool/Special . | . . . Unused Backups 11 | . 1 10 Power . | . . . Propulsion 5 | . 1 4 Utility . | . . . Weapon 6 | . . 6 Tool/Special . | . . . Average Slot Usage (%) 99 | . 99 78 Engine 13 | . 13 10 Leg 27 | . 28 14 Device 14 | . 14 14 Storage 14 | . 14 14 Ballistic Gun 26 | . 27 24 Peak Build Rating 23 | 9 23 23 Average Rating 10 | 5 10 21 On Entrance 10 | . 7 23 Avg Prop Armor Cover (%) . | . . . Naked Turns . | . . . Heaviest Build 32 | 13 32 32 Greatest Support 20 | 20 20 10 Greatest Overweight (x) 3 | . 1 3 Average Overweight (x) . | . . 2 Largest Inventory Capacity 15 | 8 15 15 Average Capacity 13 | 7 14 15 Most Carried 15 | 6 15 14 Average Carried 11 | 3 12 14 Final Capacity 15 | 8 15 15 Final Carried 14 | 6 14 13 Class Distribution -------------------- 100% | Mutant Dominant Class ---------------- Mutant | -10/Materials Mutant | -10/Mines Resources | -11 -10 -10 ----------- Run | Yrd Mat Min Matter Collected 732 | 331 307 94 Remotely . | . . . Salvage Created 843 | 191 433 219 Parts 83 | 20 42 21 Haulers Intercepted 2 | . 2 . Recyclers Shooed 1 | . . 1 Parts Field Recycled . | . . . Retrieved Matter . | . . . Parts Self-Destructed . | . . . Prevented . | . . . Parts Restored . | . . . Kills | -11 -10 -10 ------- Run | Yrd Mat Min Combat Hostiles Destroyed 19 | . 12 7 Guns 19 | . 12 7 Classes Destroyed 5 | 2 3 . Worker 3 | 2 1 . Tunneler 9 | 7 1 1 Hauler 2 | . 2 . Swarmer 9 | . 6 3 Grunt 10 | . 6 4 Best Kill Streak 4 | 4 4 4 Combat Bots Only 4 | . 4 4 Max Kills in Single Turn 1 | 1 1 1 Gunslinging . | . . . Exploded . | . . . Melee . | . . . Uniques/NPCs Destroyed . | . . . Combat | -11 -10 -10 -------- Run | Yrd Mat Min Hostile Shots Fired 129 | . 87 42 Missed 37 | . 28 9 Hits 92 | . 59 33 Projectile 92 | . 59 33 Critical Strikes 1 | . 1 . Damage Taken 943 | . 565 378 Core 254 | . 134 120 Absorbed by Shields . | . . . Core Remaining (%) 100 | 100 . . Volleys Fired 89 | 26 52 11 Largest 2 | 2 2 2 Hottest 80 | 80 46 46 Shots Fired 141 | 31 90 20 Gun 141 | 31 90 20 Cannon . | . . . Launcher . | . . . Special . | . . . Kinetic 131 | 21 90 20 Thermal . | . . . Explosive . | . . . Electromagnetic 10 | 10 . . Robot Hit Streak 9 | 6 9 4 Robot Miss Streak 5 | 2 5 3 Penetration Max . | . . . Secondary Targets 4 | . 2 2 Max Gunslinging Chain 1 | . 1 1 Shots Hit Robots 85 | 18 53 14 Core Hits 46 | 10 26 10 Critical Kills . | . . . Critical Parts Destroyed . | . . . Critical Strikes . | . . . Melee Attacks . | . . . Impact . | . . . Slashing . | . . . Piercing . | . . . Sneak Attacks . | . . . Combat Hostiles . | . . . Follow-up Attacks . | . . . Damage Inflicted 1115 | 262 683 170 Guns 1112 | 260 682 170 Cannons . | . . . Explosions . | . . . Melee . | . . . Ramming 3 | 2 1 . Kinetic 1047 | 195 682 170 Thermal . | . . . Explosive . | . . . Electromagnetic 65 | 65 . . Impact . | . . . Slashing . | . . . Piercing . | . . . Highest Corruption . | . . . Average Corruption . | . . . Corruption Purged . | . . . Corruption Blocked . | . . . Overload Shots . | . . . Overflow Damage . | . . . Projectiles . | . . . Explosions . | . . . Melee . | . . . Knockbacks . | . . . Impact . | . . . Kinetic . | . . . Secondary . | . . . Self-Inflicted Damage . | . . . Shots . | . . . Rammed . | . . . Targets Rammed 3 | 2 1 . Kicked 3 | 2 1 . Crushed . | . . . Highest Temperature 54 | 54 12 15 Average Temperature 14 | 26 5 6 Received Heat Transfer 339 | . 177 162 Siege Activations . | . . . Martial Activations . | . . . Shielding Activations . | . . . Robots Disrupted . | . . . Combat Hostiles . | . . . Robots Corrupted . | . . . Combat Hostiles . | . . . Parts Fried . | . . . Impact Corruptions . | . . . Robots Melted . | . . . Combat Hostiles . | . . . Parts Melted . | . . . Heat Transferred . | . . . Parts Sabotaged . | . . . Parts Stolen . | . . . Parts Stripped . | . . . Power Chain Reactions . | . . . Alert | -11 -10 -10 ------- Run | Yrd Mat Min Maximum Alert Level . | . . . Low Security (%) 100 | 100 100 100 Level 1 . | . . . Level 2 . | . . . Level 3 . | . . . Level 4 . | . . . Level 5 . | . . . High Security . | . . . Max Security . | . . . Peak Influence 133 | 10 74 133 Initial 13 | . . 13 Average 13 | 1 13 86 Influence Increases 541 | 45 316 180 Destroy 0b10 Robot/C 380 | . 240 140 Destroy 0b10 Robot/NC 70 | 45 20 5 Destroy Leader 74 | . 54 20 Destroy Structure 2 | . 2 . Lose Combat Pursuer 15 | . . 15 Influence Decreases 418 | 45 280 93 Entered New Map 23 | . . 23 Time Decay 345 | 45 270 30 Lost Part 50 | . 10 40 Squads Dispatched 3 | . 2 1 Investigation 1 | . . 1 Extermination . | . . . Reinforcement 2 | . 2 . Assault . | . . . Garrison . | . . . Intercept . | . . . Searches Triggered . | . . . Construction Impeded . | . . . Haulers Reinforced . | . . . Active Scanning Responses . | . . . Cargo Convoy Interrupts . | . . . Stealth | -11 -10 -10 --------- Run | Yrd Mat Min Distress Signals 2 | . 2 . Communications Jammed . | . . . Distress Signals . | . . . Times Spotted 33 | . 22 11 Peak Tracking Total 8 | . 4 8 Tactical Retreats 1 | . . 1 Traps | -11 -10 -10 ------- Run | Yrd Mat Min Traps Triggered . | . . . Indirectly . | . . . Trap Hack Attempts . | . . . Triggered . | . . . Disarmed . | . . . Reprogrammed . | . . . Reused . | . . . Traps Extracted . | . . . Installed . | . . . Triggered . | . . . Machines | -11 -10 -10 ---------- Run | Yrd Mat Min Machines Disabled . | . . . Max in Single Turn . | . . . Machines Repaired . | . . . Machines Dismantled . | . . . Machines Sabotaged . | . . . Overloaded Fab Kills . | . . . Hacking | -11 -10 -10 --------- Run | Yrd Mat Min Machines Accessed . | . . . Terminals . | . . . Fabricators . | . . . Repair Stations . | . . . Recycling Units . | . . . Scanalyzers . | . . . Garrison Access . | . . . Total Hacks . | . . . Successful . | . . . Failed . | . . . Catastrophic . | . . . Database Lockouts . | . . . Manual 1 | . 1 . Terminals . | . . . Fabricators . | . . . Repair Stations . | . . . Recycling Units . | . . . Scanalyzers . | . . . Garrison Access . | . . . Terminal Hacks . | . . . Fabricator Hacks . | . . . Repair Station Hacks . | . . . Recycling Unit Hacks . | . . . Scanalyzer . | . . . Garrison Access Hacks . | . . . Unauthorized Hacks . | . . . Terminals . | . . . Fabricators . | . . . Repair Stations . | . . . Recycling Units . | . . . Scanalyzers . | . . . Garrison Access . | . . . Data Cores Recovered . | . . . Used . | . . . Hacking Detections . | . . . Full Trace Events . | . . . Feedback Events . | . . . Feedback Blocked . | . . . Robot Schematics Acquired . | . . . Robots Built . | . . . Authchips . | . . . Time . | . . . Total Robot Build Rating . | . . . Part Schematics Acquired . | . . . Parts Built . | . . . Authchips . | . . . Time . | . . . Total Part Build Rating . | . . . Part Studies Acquired . | . . . Parts Repaired . | . . . Time . | . . . Parts Recycled . | . . . Recycled Matter . | . . . Retrieved Matter . | . . . Retrieved Components . | . . . Parts Scanalyzed . | . . . Part Schematics Acquired . | . . . Parts Damaged . | . . . Bothacking | -11 -10 -10 ------------ Run | Yrd Mat Min Used RIF Installer . | . . . Robots Hacked . | . . . Non-combat . | . . . Combat . | . . . Robot Hacks Applied . | . . . Relay Couplers Released . | . . . Fabnet Peak Effective % . | . . . Robots Rewired . | . . . Allies Hacked . | . . . Hacks Repelled . | . . . Allies | -11 -10 -10 -------- Run | Yrd Mat Min Total Allies . | . . . Largest Group . | . . . Highest-Rated Group . | . . . Highest-Rated Ally . | . . . Total Orders . | . . . Ally Attacks . | . . . Total Damage . | . . . Kills . | . . . Allies Corrupted . | . . . Allies Melted . | . . . X0-1V1 Amusement Gains 54 | . 4 50 Good Acts 2 | . 2 . Bad Acts 9 | . 1 8 Intel | -11 -10 -10 ------- Run | Yrd Mat Min Active Infowar (turns) 1896 | 17 1879 . Terrain 9 | 9 . . Seismic 1887 | 8 1879 . Robot Analysis Total . | . . . Derelict Logs Recovered . | . . . Drone Launches . | . . . Drone Recoveries . | . . . Exploration | -11 -10 -10 ------------- Run | Yrd Mat Min Turns Passed 2310 | 280 1960 70 Spaces Moved 1084 | 167 905 12 Core 5 | 5 . . Treads . | . . . Legs 1079 | 162 905 12 Wheels . | . . . Hover . | . . . Flight . | . . . Fastest Speed 50 | 50 120 260 Average Speed 176 | 117 185 318 Slowest Speed 330 | 120 190 330 Overloaded Moves . | . . . Propulsion Burnouts . | . . . Robots Hopped . | . . . Potential Cave-ins . | . . . Cave-ins Triggered . | . . . Exploration Rate (%) 35 | 5 93 7 Regions Visited 2 Branch Regions 1 Pre-discovered Areas . | . . . Known Exits Taken . | . . . Unknown Exits Taken 2 | 1 1 . Scrap Searched . | . . . Spaces Dug . | . . . Terrain Destroyed . | . . . Melee . | . . . Projectile . | . . . AOE . | . . . Terrain Rammed . | . . . Walls Destroyed . | . . . Machines Disabled . | . . . Actions | -11 -10 -10 --------- Run | Yrd Mat Min Total 1341 | 214 1103 24 Wait 125 | 5 120 . Move 1082 | 166 904 12 Hop . | . . . Pick Up 15 | 5 10 . Fast Attach 8 | 8 . . Attach 3 | . 2 1 Detach 1 | 1 . . Swap 8 | 1 7 . Drop 7 | . 7 . Fire 89 | 26 52 11 Melee . | . . . Ram . | . . . Kick 3 | 2 1 . Crush . | . . . Escape Stasis . | . . . Rewire . | . . . Trap . | . . . Miscellaneous . | . . . Route ------- -11/Scrapyard -10/Materials (discovered 4 exits: [*Mat x3] / [*Min]) -10/Mines History --------- Turn | Location | Event 3 | -11/Scrapyard | Discovered new exit (range 16) 281 | -11/Scrapyard | Entered Materials 313 | -10/Materials | Build established: Mutant 445 | -10/Materials | Discovered new exit (range 3) 802 | -10/Materials | Discovered new exit (range 5) 1012 | -10/Materials | Discovered new exit (range 16) 1090 | -10/Materials | Core integrity fell below 50% 1320 | -10/Materials | Discovered new exit (range 6) 2059 | -10/Materials | Prayed at D.C.S.S. Altar Unit 2241 | -10/Materials | Entered Mines 2242 | -10/Mines | X0-1V1 mutated your Propulsion slot to Weapon slot 2280 | -10/Mines | X0-1V1 sent hostile G-34 Mercenary (x5) 2307 | -10/Mines | Core integrity fell below 20% 2311 | -10/Mines | Destroyed by G-34 Mercenary with Small Laser Last Messages --------------- 02292_ G-34 Mercenary destroyed. 02294_ X0-1V1: "The ol' switcheroo!" G-34 Mercenary form resolidifies at new position. Form resolidifies at new position. 02295_ Acquired 45 matter. 02298_ G-34 Mercenary destroyed. 02299_ X0-1V1: "School them in the art of offensive power!" 02299_ Chain reaction triggered in Ion Engine. 02299_ X0-1V1: "I know that drunk sailor look when I see it." 02299_ G-34 Mercenary destroyed. 02301_ X0-1V1 is intrigued. 02304_ K-01 Serf collects debris. 02304_ Shotgun destroyed. 02304_ U-05 Engineer builds a Wall. 02307_ G-34 Mercenary destroyed. 02309_ K-01 Serf collects debris. 02309_ Shotgun destroyed. 02309_ Aluminum Leg destroyed. 02309_ U-05 Engineer lays Concrete. 02311_ X0-1V1 howls with laughter! Map ----- +----------------------------------------------------+ | | | | | | | | | | | | | | | | | | | | | | | | | | | ???????????????????????????????????????????????? | | ???????????????????????????????????????????????? | | ??????????????#########????????????????????????? | | ??????????????# #????????????????????????? | | ??????????????# * #????????????????????????? | | ??????????????# [%= #????????????????????????? | | ??????????????# = #????????????????????????? | | ??????????????# |*= #????????????????????????? | | ??????????????# = !#?##########?????????????? | | ??????????????#####[###?# g ??????????????? | | ??????????????????# #####[g ?????????????????? | | ??????????????????# ##;=%$g#???????????????????? | | ??????????????????# t[%!!@*#???????????????????? | | ??????????????????####;;#u #???????????????????? | | ?????????????????????####%k#???????????????????? | | ????????????????????????# #???????????????????? | | ???????????????????????? #???????????????????? | | ????????????????????????# ???????????????????? | | ????????????????????????# ??????????????????? | | ???????????????????????? ?????????????????? | | ???????????????????????? [ ????????????????? | | ???????????????????????? ???????????????? | | ???????????????????????? ??????????????? | | ???????????????????????? ## ?????????????? | | ????????????????????????#??# ??????????????? | | ???????????????????????????? ???????????????? | | ????????????????????????????# ?????????????????? | | ???????????????????????????????????????????????? | | ???????????????????????????????????????????????? | | ???????????????????????????????????????????????? | | ???????????????????????????????????????????????? | | ???????????????????????????????????????????????? | | ???????????????????????????????????????????????? | | ???????????????????????????????????????????????? | | ???????????????????????????????????????????????? | | ???????????????????????????????????????????????? | | ???????????????????????????????????????????????? | +----------------------------------------------------+ Best States ------------- Heat Dissipation 25 Energy Generation 10 Energy Capacity 1050 Matter Stores 294 Matter Capacity 300 Sight Range 16 Terrain Scan Range 16 Terrain Scan Density 10 Evasion (%) 55 Item Schematics ----------------- None Robot Schematics ------------------ None Fabricated ------------ Nothing Repaired ---------- Nothing Studied --------- None Alien Tech Used ----------------- None Achievements -------------- Chaos Is Inevitable Challenges ------------ None Game ------ Seed SmallCloakingThrower Manual? 0 Play Time 00:09:10 Cumulative 329.3 hours Start 2026.06.22 @ 22:36:27 End 2026.06.22 @ 22:44:52 Sessions 1 Manual Loads 0 Difficulty Rogue Special Mode None Game No. 686 Rogue 686 Adventurer 0 Explorer 0 Win Type - Total 22 Types 15/0/4/2/1/0/0/0/0/0 Lore% 81 Gallery% 69 Achievement% 52 Wizard Run 0 Options --------- Layout 0 ASCII 0 Keyboard 0 Movement Numpad Keybinds 0 Fullscreen 2 Font 18/Terminus Map View 76x50 Zoom Use 0% Tactical HUD 1 Map Filters NONE Filters SATURATION(100) Steam 1 RUN: e6a5fce3-3f8b-49da-b6af-5e5bfc00aa80